fUSD/lending_fUSD_20240822
["ID","MTS","AMOUNT","RATE_DAILY","PERIOD"]
[335516662,1724298632279,-251.79,9.964e-05,2]
[335516663,1724298632288,-201.54781392,9.964e-05,2]
[335516664,1724298632298,-201.54781391,9.976e-05,2]
[335516665,1724298632308,-300.0,9.987e-05,2]
[335516666,1724298632317,-444.51800309,9.988e-05,2]
[335516667,1724298632335,-449.45380464,9.988e-05,2]
[335516668,1724298632344,-1153.31533725,9.988e-05,2]
[335516669,1724298632356,-1517.42729465,9.988e-05,2]
[335516670,1724298632367,-172.44335726,9.988e-05,2]
[335516671,1724298632377,-201.54781391,9.988e-05,2]
[335516672,1724298632387,-211.05406018,0.0001,2]
[335516674,1724298632567,-36.95476865,0.00010026,2]
[335516675,1724298632581,-200.67502548,0.00010026,2]
[335516677,1724298632591,-151.28497452,0.00010026,2]
[335516680,1724298632604,-227.42164282,0.00010026,2]
[335516681,1724298632613,-333.14834763,0.00010441,2]
[335516682,1724298632626,-457.61165237,0.00010441,2]
[335516683,1724298632636,-421.4,0.00010441,2]
[335516684,1724298632646,-60.81559742,0.00010441,2]
[335516685,1724298632658,-421.55839924,0.00010441,2]
[335516686,1724298632676,-268.07010932,0.00010441,2]
[335516687,1724298632688,-40.31589402,0.00010441,2]
[335516688,1724298632700,-790.76,0.00010441,2]
[335516689,1724298632709,-547.21988,0.00010441,2]
[335516690,1724298632722,-243.54012,0.00010441,2]
[335516691,1724298632731,-33.96868542,0.00010441,2]
[335516692,1724298632743,-425.30016265,0.00010441,2]
[335516693,1724298632755,-745.66115193,0.00010441,2]
[335516694,1724298632765,-150.0,0.00010466,2]
[335516695,1724298632774,-549.75,0.00010472,2]
[335516696,1724298632783,-434.44113357,0.000105,2]
[335516697,1724298632795,-356.31886643,0.000105,2]
[335516698,1724298632806,-301.42,0.00010578,2]
[335516699,1724298632816,-273.55,0.00010578,2]
[335516700,1724298632825,-144.66608547,0.000106,2]
[335516701,1724298632837,-5.33391453,0.000106,2]
[335516702,1724298632849,-150.0,0.000106,2]
[335516703,1724298632859,-150.0,0.000106,2]
[335516704,1724298632870,-150.0,0.000106,2]
[335516705,1724298632882,-499.99,0.00010699,2]
[335516706,1724298632892,-958.53932312,0.00010713,2]
[335516707,1724298632904,-150.0,0.00010799,2]
[335516708,1724298632915,-1015.75781763,0.00010799,2]
[335516709,1724298632925,-1195.02653304,0.00010799,2]
[335516710,1724298632934,-155.94399844,0.000108,2]
[335516711,1724298632944,-4705.0001935,0.000108,2]
[335516712,1724298632955,-6599.8936857,0.000108,2]
[335516713,1724298632966,-3472.06007727,0.00010841,2]
[335516715,1724298638224,-582.24356216,0.00010841,2]
[335516716,1724298638235,-351.92,0.00010841,2]
[335516717,1724298638293,-18.22445959,0.00010841,2]
[335516718,1724298638302,-306.55,0.00010851,2]
[335516719,1724298638311,-2185.94554041,0.00010851,2]
[335516720,1724298638324,-2560.29215959,0.00010851,2]
[335516721,1724298638334,-9215.04043923,0.00010851,2]
[335516722,1724298638345,-1553.4252,0.00010851,2]
[335516723,1724298638358,-1732.95536077,0.00010851,2]
[335516724,1724298638367,-467.07814849,0.00010852,2]
[335516725,1724298638378,-423.10202108,0.00010852,2]
[335516726,1724298638390,-698.46349581,0.00010852,2]
[335516727,1724298638401,-561.82928208,0.00010852,2]
[335516728,1724298638443,-1731.68928896,0.00010852,2]
[335516729,1724298638454,-1000.0,0.00010857,2]
[335516730,1724298638464,-1144.099,0.00010858,2]
[335516731,1724298638473,-247.9946,0.00010858,2]
[335516732,1724298638483,-718.3116,0.00010858,2]
[335516733,1724298638492,-290.5699,0.00010858,2]
[335516734,1724298638501,-7500.0,0.00010858,2]
[335516735,1724298638510,-1256.81283107,0.00010861,2]
[335516736,1724298638520,-527.15084284,0.00010862,2]
[335516737,1724298638529,-155.0,0.00010862,2]
[335516738,1724298638539,-156.45937811,0.00010862,2]
[335516739,1724298638549,-166.66694184,0.00010888,2]
[335516740,1724298638558,-189.78172834,0.00010888,2]
[335516741,1724298638567,-156.14138188,0.00010888,2]
[335516742,1724298638576,-435.07539557,0.00010888,2]
[335516743,1724298638589,-164.14179503,0.00010888,2]
[335516744,1724298638598,-155.78869074,0.0001089,2]
[335516745,1724298638607,-297.4607519,0.0001089,2]
[335516746,1724298638617,-294.45395404,0.00010899,2]
[335516747,1724298638627,-294.453954,0.00010899,2]
[335516748,1724298638637,-294.453954,0.00010899,2]
[335516750,1724298638647,-294.453954,0.00010899,2]
[335516751,1724298638656,-294.453954,0.00010899,2]
[335516752,1724298638666,-294.453954,0.00010899,2]
[335516753,1724298638675,-294.453954,0.00010899,2]
[335516754,1724298638685,-294.453954,0.00010899,2]
[335516755,1724298638696,-294.453954,0.00010899,2]
[335516756,1724298638705,-294.453954,0.000109,2]
[335516758,1724298638715,-15440.00233368,0.0001095,2]
[335516760,1724298638726,-3037.3354961,0.0001095,2]
[335516762,1724298638737,-41339.03162256,0.0001095,2]
[335516763,1724298638746,-3613.5056103,0.00010951,2]
[335516764,1724298638755,-44869.2011637,0.00010951,2]
[335516765,1724298638764,-6808.5120697,0.00010951,2]
[335516766,1724298638773,-968.71343274,0.00010955,2]
[335516767,1724298638783,-235.27502008,0.00010957,2]
[335516768,1724298638792,-500.0,0.00010957,2]
[335516769,1724298638801,-500.0,0.00010957,2]
[335516770,1724298638810,-500.0,0.00010957,2]
[335516771,1724298638821,-500.0,0.00010957,2]
[335516772,1724298638831,-500.0,0.00010957,2]
[335516773,1724298638840,-500.0,0.00010957,2]
[335516774,1724298638849,-500.0,0.00010957,2]
[335516775,1724298638858,-500.0,0.00010957,2]
[335516776,1724298638867,-500.0,0.00010957,2]
[335516777,1724298638881,-500.0,0.00010957,2]
[335516778,1724298638890,-500.0,0.00010957,2]
[335516779,1724298638900,-500.0,0.00010957,2]
[335516780,1724298638909,-500.0,0.00010957,2]
[335516781,1724298638919,-500.0,0.00010957,2]
[335516782,1724298638928,-500.0,0.00010957,2]
[335516783,1724298638939,-500.0,0.00010957,2]
[335516784,1724298638950,-500.0,0.00010957,2]
[335516785,1724298638959,-500.0,0.00010957,2]
[335516786,1724298638968,-624.4,0.00010957,2]
[335516787,1724298638977,-790.94,0.00010957,2]
[335516788,1724298638987,-790.94,0.00010957,2]
[335516789,1724298638996,-790.94,0.00010957,2]
[335516790,1724298639005,-790.94,0.00010957,2]
[335516791,1724298639014,-790.94,0.00010957,2]
[335516792,1724298639023,-790.94,0.00010957,2]
[335516793,1724298639032,-790.94,0.00010957,2]
[335516794,1724298639041,-790.94,0.00010957,2]
[335516795,1724298639050,-790.94,0.00010957,2]
[335516796,1724298639060,-790.94,0.00010957,2]
[335516797,1724298639069,-790.94,0.00010957,2]
[335516798,1724298639078,-790.94,0.00010957,2]
[335516799,1724298639088,-790.94,0.00010957,2]
[335516800,1724298639097,-790.94,0.00010957,2]
[335516801,1724298639107,-790.94,0.00010957,2]
[335516802,1724298639116,-790.94,0.00010957,2]
[335516803,1724298639125,-790.94,0.00010957,2]
[335516804,1724298639135,-790.94,0.00010957,2]
[335516805,1724298639144,-790.94,0.00010957,2]
[335516806,1724298639153,-790.94,0.00010957,2]
[335516807,1724298639162,-790.94,0.00010957,2]
[335516808,1724298639171,-790.94,0.00010957,2]
[335516809,1724298639181,-790.94,0.00010957,2]
[335516810,1724298639189,-791.13415814,0.00010957,2]
[335516811,1724298639198,-844.0,0.00010958,2]
[335516812,1724298639207,-435.53772626,0.00010958,2]
[335516813,1724298639217,-19276.48,0.00010958,2]
[335516814,1724298639227,-1440.11,0.00010958,2]
[335516815,1724298639238,-73.79416441,0.00010958,2]
[335516816,1724298639385,-1697.09681295,0.00010958,2]
[335516817,1724298639405,-1507.20902264,0.00010958,2]
[335516818,1724298639414,-1440.11,0.00010958,2]
[335516819,1724298639423,-19276.48,0.00010958,2]
[335516820,1724298639433,-3278.1,0.00010958,2]
[335516821,1724298639442,-1440.11,0.00010958,2]
[335516822,1724298639451,-19276.48,0.00010958,2]
[335516823,1724298639460,-3278.1,0.00010958,2]
[335516824,1724298639470,-1440.11,0.00010958,2]
[335516825,1724298639479,-19276.48,0.00010958,2]
[335516826,1724298639488,-2975.29,0.00010958,2]
[335516827,1724298639497,-1440.11,0.00010958,2]
[335516828,1724298639507,-19276.48,0.00010958,2]
[335516829,1724298639515,-3278.1,0.00010958,2]
[335516830,1724298639524,-1440.11,0.00010958,2]
[335516831,1724298639534,-3278.1,0.00010958,2]
[335516832,1724298639543,-2975.29,0.00010958,2]
[335516833,1724298639553,-19276.48,0.00010958,2]
[335516834,1724298639562,-1440.22393858,0.00010958,2]
[335516835,1724298639571,-2975.29,0.00010958,2]
[335516836,1724298639581,-19276.68433373,0.00010958,2]
[335516837,1724298639590,-3278.1,0.00010958,2]
[335516838,1724298639600,-3278.1,0.00010958,2]
[335516839,1724298639611,-2975.29,0.00010958,2]
[335516840,1724298639621,-3278.1,0.00010958,2]
[335516841,1724298639632,-2975.29,0.00010958,2]
[335516842,1724298639642,-2975.29,0.00010958,2]
[335516843,1724298639653,-3278.1,0.00010958,2]
[335516844,1724298639663,-3278.1,0.00010958,2]
[335516845,1724298639673,-2975.29,0.00010958,2]
[335516846,1724298639683,-3278.1,0.00010958,2]
[335516847,1724298639692,-2975.29,0.00010958,2]
[335516848,1724298639702,-3278.1,0.00010958,2]
[335516849,1724298639711,-2975.29,0.00010958,2]
[335516850,1724298639722,-22352.13,0.00010958,2]
[335516851,1724298639731,-3278.1,0.00010958,2]
[335516852,1724298639740,-2975.29,0.00010958,2]
[335516853,1724298639750,-22352.13,0.00010958,2]
[335516854,1724298639760,-3278.1,0.00010958,2]
[335516855,1724298639770,-2975.29,0.00010958,2]
[335516856,1724298639780,-22352.13,0.00010958,2]
[335516857,1724298639789,-3278.1,0.00010958,2]
[335516858,1724298639799,-2975.29,0.00010958,2]
[335516859,1724298639808,-22352.13,0.00010958,2]
[335516860,1724298639817,-2975.29,0.00010958,2]
[335516861,1724298639827,-3278.1,0.00010958,2]
[335516862,1724298639837,-22352.13,0.00010958,2]
[335516863,1724298639847,-2975.29,0.00010958,2]
[335516864,1724298639856,-3278.1,0.00010958,2]
[335516865,1724298639866,-2975.29,0.00010958,2]
[335516866,1724298639878,-3278.1,0.00010958,2]
[335516867,1724298639888,-22352.13,0.00010958,2]
[335516868,1724298639899,-2975.29,0.00010958,2]
[335516869,1724298639908,-3278.30977083,0.00010958,2]
[335516870,1724298639919,-22352.13,0.00010958,2]
[335516871,1724298639929,-11173.19,0.00010958,2]
[335516872,1724298639939,-2975.29,0.00010958,2]
[335516873,1724298639950,-500.0,0.00010958,2]
[335516874,1724298639961,-22352.13,0.00010958,2]
[335516875,1724298639971,-11173.19,0.00010958,2]
[335516876,1724298639981,-318.45704518,0.00010958,2]
[335516877,1724298639990,-2975.29,0.00010958,2]
[335516878,1724298640000,-22352.13,0.00010958,2]
[335516879,1724298640010,-11173.19,0.00010958,2]
[335516880,1724298640020,-2975.29,0.00010958,2]
[335516881,1724298640029,-22352.13,0.00010958,2]
[335516882,1724298640039,-11173.19,0.00010958,2]
[335516883,1724298640049,-2975.29,0.00010958,2]
[335516884,1724298640059,-22352.13,0.00010958,2]
[335516885,1724298640069,-11173.19,0.00010958,2]
[335516886,1724298640079,-2975.29,0.00010958,2]
[335516887,1724298640089,-22352.13,0.00010958,2]
[335516888,1724298640100,-11173.19,0.00010958,2]
[335516889,1724298640109,-2975.29,0.00010958,2]
[335516890,1724298640119,-22352.13,0.00010958,2]
[335516891,1724298640128,-11173.19,0.00010958,2]
[335516892,1724298640138,-22352.13,0.00010958,2]
[335516893,1724298640148,-11173.19,0.00010958,2]
[335516894,1724298640158,-22352.13,0.00010958,2]
[335516895,1724298640168,-2975.29,0.00010958,2]
[335516896,1724298640177,-11173.19,0.00010958,2]
[335516897,1724298640187,-500.0,0.00010958,2]
[335516898,1724298640319,-2664.41,0.00010958,2]
[335516899,1724298640329,-11173.19,0.00010958,2]
[335516900,1724298640340,-22352.13,0.00010958,2]
[335516901,1724298640351,-2975.36990086,0.00010958,2]
[335516902,1724298640361,-2664.41,0.00010958,2]
[335516903,1724298640371,-500.0,0.00010958,2]
[335516904,1724298640381,-22352.13,0.00010958,2]
[335516905,1724298640392,-2664.41,0.00010958,2]
[335516906,1724298640403,-500.0,0.00010958,2]
[335516907,1724298640413,-11173.19,0.00010958,2]
[335516908,1724298640423,-22352.13,0.00010958,2]
[335516909,1724298640433,-2664.41,0.00010958,2]
[335516910,1724298640443,-500.0,0.00010958,2]
[335516911,1724298640453,-11173.19,0.00010958,2]
[335516912,1724298640463,-22352.13,0.00010958,2]
[335516913,1724298640473,-500.0,0.00010958,2]
[335516914,1724298640482,-2664.41,0.00010958,2]
[335516915,1724298640492,-11173.19,0.00010958,2]
[335516916,1724298640501,-7211.38,0.00010958,2]
[335516917,1724298640511,-22352.13,0.00010958,2]
[335516918,1724298640520,-500.0,0.00010958,2]
[335516919,1724298640530,-2664.41,0.00010958,2]
[335516920,1724298640539,-11173.19,0.00010958,2]
[335516921,1724298640549,-7211.38,0.00010958,2]
[335516922,1724298640558,-22352.13,0.00010958,2]
[335516923,1724298640568,-500.0,0.00010958,2]
[335516924,1724298640578,-2664.41,0.00010958,2]
[335516925,1724298640588,-11173.19,0.00010958,2]
[335516926,1724298640598,-7211.38,0.00010958,2]
[335516927,1724298640608,-22352.13,0.00010958,2]
[335516928,1724298640618,-176.88093286,0.00010958,2]
[335516929,1724298640628,-2664.41,0.00010958,2]
[335516930,1724298640638,-11173.19,0.00010958,2]
[335516931,1724298640648,-7211.38,0.00010958,2]
[335516932,1724298640657,-22352.13,0.00010958,2]
[335516933,1724298640667,-2664.41,0.00010958,2]
[335516934,1724298640676,-11173.19,0.00010958,2]
[335516935,1724298640685,-7211.38,0.00010958,2]
[335516936,1724298640696,-22352.14668863,0.00010958,2]
[335516937,1724298640707,-2664.41,0.00010958,2]
[335516938,1724298640717,-11173.19,0.00010958,2]
[335516939,1724298640727,-7211.38,0.00010958,2]
[335516940,1724298640738,-2664.41,0.00010958,2]
[335516941,1724298640750,-11173.19,0.00010958,2]
[335516942,1724298640759,-7211.38,0.00010958,2]
[335516944,1724298640769,-11173.19,0.00010958,2]
[335516946,1724298640779,-7211.38,0.00010958,2]
[335516948,1724298640790,-11173.19,0.00010958,2]
[335516950,1724298640799,-7211.38,0.00010958,2]
[335516952,1724298640810,-11173.19,0.00010958,2]
[335516954,1724298640820,-7211.38,0.00010958,2]
[335516956,1724298640830,-2664.41,0.00010958,2]
[335516958,1724298640847,-11173.19,0.00010958,2]
[335516959,1724298640860,-2664.41,0.00010958,2]
[335516961,1724298640871,-7211.38,0.00010958,2]
[335516963,1724298640885,-11173.23420634,0.00010958,2]
[335516965,1724298640897,-2664.41,0.00010958,2]
[335516968,1724298640907,-7211.38,0.00010958,2]
[335516970,1724298640917,-2664.41,0.00010958,2]
[335516972,1724298640929,-7211.38,0.00010958,2]
[335516974,1724298640939,-2664.41,0.00010958,2]
[335516976,1724298640949,-7211.38,0.00010958,2]
[335516978,1724298640960,-2664.41,0.00010958,2]
[335516980,1724298640969,-7211.38,0.00010958,2]
[335516982,1724298640979,-2664.41,0.00010958,2]
[335516983,1724298640988,-7211.38,0.00010958,2]
[335516985,1724298640997,-2664.41,0.00010958,2]
[335516987,1724298641007,-7211.38,0.00010958,2]
[335516989,1724298641016,-2664.41,0.00010958,2]
[335516991,1724298641026,-7211.38,0.00010958,2]
[335516993,1724298641036,-2664.41,0.00010958,2]
[335516994,1724298641047,-7211.38,0.00010958,2]
[335516996,1724298641057,-8573.41,0.00010958,2]
[335516998,1724298641066,-2664.41,0.00010958,2]
[335516999,1724298641078,-7211.38,0.00010958,2]
[335517000,1724298641087,-8573.41,0.00010958,2]
[335517001,1724298641098,-2664.41,0.00010958,2]
[335517002,1724298641107,-682.68,0.00010958,2]
[335517003,1724298641116,-7211.38,0.00010958,2]
[335517004,1724298641127,-8573.41,0.00010958,2]
[335517005,1724298641136,-2664.53553734,0.00010958,2]
[335517006,1724298641146,-682.68,0.00010958,2]
[335517007,1724298641156,-8573.41,0.00010958,2]
[335517008,1724298641166,-7211.38,0.00010958,2]
[335517009,1724298641175,-682.68,0.00010958,2]
[335517010,1724298641186,-8573.41,0.00010958,2]
[335517011,1724298641196,-682.68,0.00010958,2]
[335517012,1724298641205,-7211.38,0.00010958,2]
[335517013,1724298641215,-8573.41,0.00010958,2]
[335517014,1724298641226,-7211.59458802,0.00010958,2]
[335517015,1724298641236,-682.68,0.00010958,2]
[335517016,1724298641247,-8573.41,0.00010958,2]
[335517017,1724298641257,-7667.73,0.00010958,2]
[335517018,1724298641266,-8573.41,0.00010958,2]
[335517019,1724298641275,-7667.73,0.00010958,2]
[335517020,1724298641285,-682.68,0.00010958,2]
[335517021,1724298641294,-8573.41,0.00010958,2]
[335517022,1724298641304,-7667.73,0.00010958,2]
[335517023,1724298641314,-682.68,0.00010958,2]
[335517024,1724298641323,-8573.41,0.00010958,2]
[335517025,1724298641332,-7667.73,0.00010958,2]
[335517026,1724298641347,-682.68,0.00010958,2]
[335517027,1724298641357,-7667.73,0.00010958,2]
[335517028,1724298641366,-682.68,0.00010958,2]
[335517029,1724298641376,-8573.41,0.00010958,2]
[335517030,1724298641386,-7667.73,0.00010958,2]
[335517031,1724298641397,-682.68,0.00010958,2]
[335517032,1724298641406,-8573.41,0.00010958,2]
[335517033,1724298641415,-7667.73,0.00010958,2]
[335517034,1724298641425,-8573.41,0.00010958,2]
[335517035,1724298641434,-7667.73,0.00010958,2]
[335517036,1724298641444,-682.68,0.00010958,2]
[335517037,1724298641453,-8573.41,0.00010958,2]
[335517038,1724298641463,-7667.73,0.00010958,2]
[335517039,1724298641472,-682.68,0.00010958,2]
[335517040,1724298641481,-7667.73,0.00010958,2]
[335517041,1724298641490,-682.68,0.00010958,2]
[335517042,1724298641500,-7667.73,0.00010958,2]
[335517043,1724298641510,-682.68,0.00010958,2]
[335517044,1724298641519,-7667.73,0.00010958,2]
[335517045,1724298641529,-7667.73,0.00010958,2]
[335517046,1724298641538,-682.68,0.00010958,2]
[335517047,1724298641547,-7667.73,0.00010958,2]
[335517048,1724298641557,-682.68,0.00010958,2]
[335517049,1724298641567,-8573.41,0.00010958,2]
[335517050,1724298641576,-7667.73,0.00010958,2]
[335517051,1724298641589,-682.68,0.00010958,2]
[335517052,1724298641598,-8573.41,0.00010958,2]
[335517053,1724298641607,-7667.73,0.00010958,2]
[335517054,1724298641616,-682.68,0.00010958,2]
[335517055,1724298641626,-8573.41,0.00010958,2]
[335517056,1724298641635,-682.68,0.00010958,2]
[335517057,1724298641644,-8573.41,0.00010958,2]
[335517058,1724298641653,-682.68,0.00010958,2]
[335517059,1724298641663,-8573.41,0.00010958,2]
[335517060,1724298641672,-682.68,0.00010958,2]
[335517061,1724298641686,-8573.41,0.00010958,2]
[335517062,1724298641699,-682.68,0.00010958,2]
[335517063,1724298641712,-8573.41,0.00010958,2]
[335517064,1724298641724,-682.68,0.00010958,2]
[335517065,1724298641737,-8573.41,0.00010958,2]
[335517066,1724298641747,-682.82,0.00010958,2]
[335517067,1724298641758,-8573.41,0.00010958,2]
[335517068,1724298641772,-8573.58923772,0.00010958,2]
[335517069,1724298641783,-7667.73,0.00010958,2]
[335517070,1724298641795,-7667.73,0.00010958,2]
[335517071,1724298641808,-7667.73,0.00010958,2]
[335517072,1724298641820,-7667.73,0.00010958,2]
[335517073,1724298641833,-7667.73,0.00010958,2]
[335517074,1724298641844,-7667.73,0.00010958,2]
[335517075,1724298641856,-7667.73,0.00010958,2]
[335517076,1724298641869,-7667.91155277,0.00010958,2]
[335517077,1724298641886,-170.82093488,0.00010958,2]
[335517078,1724298641898,-413.39640966,0.00010958,2]
[335517079,1724298641910,-162.86951245,0.00010958,2]
[335517080,1724298641923,-300.2156988,0.00010958,2]
[335517081,1724298641935,-1051.32949098,0.00010958,2]
[335517082,1724298641946,-152.775287,0.00010958,2]
[335517083,1724298641960,-152.775287,0.00010958,2]
[335517084,1724298641974,-152.775287,0.00010958,2]
[335517085,1724298641987,-152.775287,0.00010958,2]
[335517086,1724298641999,-152.775287,0.00010958,2]
[335517087,1724298642011,-152.775287,0.00010958,2]
[335517088,1724298642021,-152.775287,0.00010958,2]
[335517089,1724298642032,-152.775287,0.00010958,2]
[335517090,1724298642043,-152.775287,0.00010958,2]
[335517091,1724298642055,-152.775287,0.00010958,2]
[335517092,1724298642067,-152.775287,0.00010958,2]
[335517093,1724298642077,-152.775287,0.00010958,2]
[335517094,1724298642090,-152.775287,0.00010958,2]
[335517095,1724298642102,-152.775287,0.00010958,2]
[335517096,1724298642114,-500.0,0.00010958,2]
[335517097,1724298642125,-452.83266968,0.00010958,2]
[335517098,1724298642138,-1610.91636,0.00010958,2]
[335517099,1724298642151,-155.32,0.00010959,2]
[335517100,1724298642162,-166.44,0.00010959,2]
[335517101,1724298642174,-187.25,0.00010959,2]
[335517102,1724298642186,-150.6,0.00010959,2]
[335517103,1724298642199,-585.59,0.00010959,2]
[335517104,1724298642209,-2000.0,0.00010959,2]
[335517105,1724298642220,-250.0,0.00010959,2]
[335517106,1724298642230,-150.0,0.00010959,2]
[335517107,1724298642241,-4400.6,0.00010959,2]
[335517108,1724298642252,-1026.62,0.00010959,2]
[335517109,1724298642264,-855.52,0.00010959,2]
[335517110,1724298642276,-712.93,0.00010959,2]
[335517111,1724298642288,-594.11,0.00010959,2]
[335517112,1724298642299,-495.09,0.00010959,2]
[335517113,1724298642309,-412.58,0.00010959,2]
[335517114,1724298642319,-343.82,0.00010959,2]
[335517115,1724298642331,-286.51,0.00010959,2]
[335517116,1724298642342,-238.76,0.00010959,2]
[335517117,1724298642352,-198.97,0.00010959,2]
[335517118,1724298642365,-165.81,0.00010959,2]
[335517119,1724298642376,-829.05,0.00010959,2]
[335517120,1724298642387,-500.0,0.0001096,2]
[335517121,1724298642398,-500.0,0.0001096,2]
[335517122,1724298642408,-500.0,0.0001096,2]
[335517123,1724298642419,-500.0,0.0001096,2]
[335517124,1724298642430,-400.0,0.00010973,2]
[335517125,1724298642440,-188.937186,0.00010973,2]
[335517126,1724298642451,-1258.0,0.00010974,2]
[335517127,1724298642462,-625.371,0.00010974,2]
[335517128,1724298642473,-1923.0,0.00010974,2]
[335517129,1724298642484,-1543.0,0.00010974,2]
[335517130,1724298642494,-820.019,0.00010974,2]
[335517131,1724298642506,-447.0,0.00010974,2]
[335517132,1724298642516,-556.0,0.00010974,2]
[335517133,1724298642527,-1138.0,0.00010974,2]
[335517134,1724298642538,-150.429,0.00010974,2]
[335517135,1724298642550,-555.894,0.00010974,2]
[335517136,1724298642562,-1899.44,0.00010974,2]
[335517137,1724298642573,-150.726,0.00010974,2]
[335517138,1724298642585,-248.0,0.00010974,2]
[335517139,1724298642595,-1162.0,0.00010974,2]
[335517140,1724298642605,-3326.787,0.00010974,2]
[335517141,1724298642616,-766.0,0.00010974,2]
[335517142,1724298642626,-21828.61,0.00010974,2]
[335517143,1724298642637,-3737.262,0.00010974,2]
[335517144,1724298642647,-289.713,0.00010974,2]
[335517145,1724298642658,-5859.288,0.00010974,2]
[335517146,1724298642668,-1678.116,0.00010974,2]
[335517147,1724298642678,-1207.961,0.00010974,2]
[335517148,1724298642690,-150.0,0.00010974,2]
[335517149,1724298642701,-150.0,0.00010983,2]
[335517150,1724298642712,-200.0,0.00010983,2]
[335517151,1724298642722,-150.0,0.00010983,2]
[335517152,1724298642733,-260.973,0.00010983,2]
[335517153,1724298642745,-250.0,0.00010983,2]
[335517154,1724298642756,-170.082,0.00010983,2]
[335517155,1724298642767,-200.987,0.00010983,2]
[335517156,1724298642778,-420.0,0.00010985,2]
[335517157,1724298642789,-500.0,0.00010989,2]
[335517158,1724298642800,-110867.29616942,0.0001099,2]
[335517159,1724298642811,-3276.0308874,0.00010992,2]
[335517160,1724298642824,-42444.510203,0.00010992,2]
[335517161,1724298642835,-6446.3044223,0.00010992,2]
[335517162,1724298642845,-152.775287,0.00010996,2]
[335517163,1724298642857,-152.775287,0.00010996,2]
[335517164,1724298642867,-152.775287,0.00010996,2]
[335517165,1724298642882,-152.775287,0.00010996,2]
[335517166,1724298642893,-3390.49701459,0.00010997,2]
[335517167,1724298642906,-500.0,0.00010998,2]
[335517168,1724298642917,-500.0,0.00010998,2]
[335517169,1724298642928,-512851.11663255,0.00010999,2]
[335517170,1724298642939,-451.12641513,0.00010999,2]
[335517171,1724298642953,-248.984929,0.00010999,2]
[335517172,1724298642964,-151.0,0.00010999,2]
[335517173,1724298642976,-151.0,0.00010999,2]
[335517174,1724298642987,-151.0,0.00010999,2]
[335517175,1724298642999,-151.0,0.00010999,2]
[335517176,1724298643010,-151.0,0.00010999,2]
[335517177,1724298643022,-177.450462,0.00010999,2]
[335517178,1724298643036,-177.450462,0.00010999,2]
[335517179,1724298643048,-331.216982,0.00010999,2]
[335517180,1724298643059,-331.216982,0.00010999,2]
[335517181,1724298643071,-151.0,0.00010999,2]
[335517182,1724298643082,-242.070608,0.00010999,2]
[335517183,1724298643094,-151.0,0.00010999,2]
[335517184,1724298643105,-242.070608,0.00010999,2]
[335517185,1724298643117,-151.0,0.00010999,2]
[335517187,1724298643129,-265.183558,0.00010999,2]
[335517189,1724298643142,-265.183558,0.00010999,2]
[335517190,1724298643152,-151.0,0.00010999,2]
[335517191,1724298643162,-234.108508,0.00010999,2]
[335517192,1724298643171,-234.108508,0.00010999,2]
[335517193,1724298643181,-151.0,0.00010999,2]
[335517194,1724298643191,-151.0,0.00010999,2]
[335517196,1724298643371,-151.0,0.00010999,2]
[335517197,1724298643384,-456.473296,0.00010999,2]
[335517198,1724298643394,-456.473296,0.00010999,2]
[335517199,1724298643404,-151.0,0.00010999,2]
[335517200,1724298643414,-281.281582,0.00010999,2]